Cogmind - Beta 17.1 @@@ ROGUE MODE // 2026.08.25 @ 14:55:30 Player: Limbermonkey Result: Destroyed by L-31 Rogue with Katana Performance ------------- Evolutions (1) 500 Regions Visited (2) 400 Robots Destroyed (25) 125 Value Destroyed (662) 662 Prototype IDs (0) 0 Alien Tech Used (0) 0 Bonus (0) 0 TOTAL SCORE: 1687 Bonus ------- None Cogmind --------- Core Integrity 0/400 Matter 235/300 Energy 100/100 System Corruption 10% Temperature Hot (280) Movement Treading (160) Location -9/Materials Parts ------- > --- POWER (1) -------- (None) > --- PROPULSION (3) --- Light Treads > --- UTILITY (3) ------ Small Storage Unit > --- WEAPON (2) ------- (None) > --- INVENTORY (8) ---- Aluminum Leg Aluminum Leg Propulsion Shielding Mining Claw Peak State ------------ > --- POWER ------------ Ion Engine > --- PROPULSION ------- Wheel Compact Wheel Compact Wheel > --- UTILITY ---------- Improved Heat Sink Small Storage Unit Structural Scanner > --- WEAPON ----------- Beam Rifle Heavy Assault Rifle > --- INVENTORY -------- Light Treads Aluminum Leg Aluminum Leg Propulsion Shielding Light Armor Plating Light Armor Plating Rocket Launcher Mining Claw [Rating: 13] Favorites ----------- Power Ion Engine Engine Ion Engine Propulsion Compact Wheel Treads Light Treads Leg Aluminum Leg Wheel Compact Wheel Utility Small Storage Unit Device Structural Scanner Storage Small Storage Unit Protection Propulsion Shielding Weapon Medium Laser Energy Gun Medium Laser Energy Cannon Beam Cannon Ballistic Gun Light Assault Rifle Launcher Rocket Launcher Build | -11 -10 -9 ------- Run | Yrd Mat Mat Slots Evolved 2 | . . 2 Power . | . . . Propulsion 1 | . . 1 Utility 1 | . . 1 Weapon . | . . . Parts Attached 22 | . 8 14 Power 2 | . . 2 Engine 2 | . . 2 Core . | . . . Reactor . | . . . Propulsion 9 | . 3 6 Treads 1 | . . 1 Leg . | . . . Wheel 8 | . 3 5 Hover . | . . . Flight . | . . . Utility 5 | . 3 2 Device 2 | . 2 . Storage . | . . . Processor . | . . . Hackware . | . . . Protection 3 | . 1 2 Artifact . | . . . Weapon 6 | . 2 4 Energy Gun 2 | . 1 1 Energy Cannon 1 | . 1 . Ballistic Gun 2 | . . 2 Ballistic Cannon . | . . . Launcher 1 | . . 1 Special Weapon . | . . . Impact Weapon . | . . . Slashing Weapon . | . . . Piercing Weapon . | . . . Special Melee Weapon . | . . . Unidentified Prototypes . | . . . Parts Lost 14 | . 1 13 Power 3 | . . 3 Propulsion 5 | . 1 4 Utility 4 | . . 4 Weapon 2 | . . 2 Highest Loss Streak 6 | . 1 6 To Critical Strikes . | . . . Average Backups 7 | 6 8 7 Power . | 1 1 . Propulsion 5 | 4 5 3 Utility . | . . 1 Weapon 1 | 1 1 1 Tool/Special . | . . . Unused Backups 3 | . . 3 Power . | . . . Propulsion 2 | . . 2 Utility . | . . . Weapon 1 | . . 1 Tool/Special . | . . . Average Slot Usage (%) 94 | . 98 84 Engine 12 | . 14 8 Leg 1 | . 1 . Wheel 25 | . 26 25 Device 5 | . 1 14 Storage 13 | . 14 11 Protection 9 | . 11 3 Energy Gun 13 | . 15 10 Energy Cannon 9 | . 12 1 Ballistic Gun 2 | . . 9 Peak Build Rating 13 | 6 9 13 Average Rating 7 | 6 7 9 On Entrance 6 | 6 6 8 Avg Prop Armor Cover (%) . | . . . Naked Turns . | . . . Heaviest Build 18 | 14 16 18 Greatest Support 48 | 20 32 48 Greatest Overweight (x) 1 | . . 1 Average Overweight (x) . | . . . Largest Inventory Capacity 8 | 8 8 8 Average Capacity 8 | 8 8 8 Most Carried 8 | 8 8 8 Average Carried 7 | 6 7 7 Final Capacity 8 | 8 8 8 Final Carried 8 | 8 8 4 Class Distribution -------------------- 88% | Mutant 11% | Scavenger-Mutant Dominant Class ---------------- Mutant | -10/Materials Mutant | -9/Materials Resources | -11 -10 -9 ----------- Run | Yrd Mat Mat Matter Collected 465 | 200 139 126 Remotely . | . . . Salvage Created 910 | 59 365 486 Parts 59 | 5 20 34 Haulers Intercepted . | . . . Recyclers Shooed 1 | . . 1 Parts Field Recycled . | . . . Retrieved Matter . | . . . Parts Self-Destructed . | . . . Prevented . | . . . Parts Restored . | . . . Kills | -11 -10 -9 ------- Run | Yrd Mat Mat Combat Hostiles Destroyed 21 | . 9 12 Guns 14 | . 2 12 Cannons 7 | . 7 . Classes Destroyed 6 | 1 3 2 Recycler 3 | 1 1 1 Watcher 1 | . 1 . Swarmer 7 | . 3 4 Grunt 9 | . 6 3 Brawler 1 | . . 1 Sentry 4 | . . 4 Best Kill Streak 10 | 1 10 6 Combat Bots Only 9 | . 9 6 Max Kills in Single Turn 2 | 1 1 2 Gunslinging 1 | . . 1 Exploded . | . . . Melee . | . . . Uniques/NPCs Destroyed . | . . . Combat | -11 -10 -9 -------- Run | Yrd Mat Mat Hostile Shots Fired 171 | . 41 130 Missed 38 | . 11 27 Hits 133 | . 30 103 Melee 13 | . . 13 Projectile 120 | . 30 90 Critical Strikes 2 | . . 2 Damage Taken 1707 | . 289 1418 Core 473 | . 66 407 Absorbed by Shields . | . . . Redirected to Shielding 5 | . 5 . Core Remaining (%) 86 | 100 73 . Volleys Fired 61 | 2 20 39 Largest 2 | 2 2 2 Hottest 110 | 90 110 79 Shots Fired 122 | 4 40 78 Gun 100 | 4 20 76 Cannon 20 | . 20 . Launcher 2 | . . 2 Special . | . . . Kinetic 39 | . . 39 Thermal 79 | 2 40 37 Explosive 2 | . . 2 Electromagnetic 2 | 2 . . Robot Hit Streak 17 | 1 10 17 Robot Miss Streak 3 | 1 2 3 Penetration Max . | . . . Secondary Targets 4 | . . 4 Max Gunslinging Chain 1 | . . 1 Shots Hit Robots 91 | 2 30 59 Core Hits 37 | 1 15 21 Critical Kills 1 | . . 1 Critical Parts Destroyed . | . . . Critical Strikes 6 | . 3 3 Burn 5 | . 3 2 Destroy 1 | . . 1 Melee Attacks . | . . . Impact . | . . . Slashing . | . . . Piercing . | . . . Sneak Attacks . | . . . Combat Hostiles . | . . . Follow-up Attacks . | . . . Damage Inflicted 1393 | 28 439 926 Guns 963 | 28 211 724 Cannons 228 | . 228 . Explosions 202 | . . 202 Melee . | . . . Ramming . | . . . Kinetic 355 | . . 355 Thermal 808 | . 439 369 Explosive 202 | . . 202 Electromagnetic 28 | 28 . . Impact . | . . . Slashing . | . . . Piercing . | . . . Highest Corruption 10 | . . 10 Average Corruption 8 | . . 8 Corruption Purged . | . . . Corruption Blocked . | . . . Effects 2 | . . 2 Matter Fused 1 | . . 1 Heat Flow Errors 1 | . . 1 Overload Shots . | . . . Overflow Damage 2 | . . 2 Projectiles . | . . . Explosions 2 | . . 2 Melee . | . . . Knockbacks . | . . . Impact . | . . . Kinetic . | . . . Secondary . | . . . Self-Inflicted Damage 74 | . . 74 Shots 2 | . . 2 Rammed . | . . . Targets Rammed . | . . . Kicked . | . . . Crushed . | . . . Highest Temperature 444 | 60 444 336 Average Temperature 111 | 31 143 87 Received Heat Transfer 450 | . 99 351 Effects 4 | . 4 . Shutdowns 1 | . 1 . Interference 2 | . 2 . Matter Decay 1 | . 1 . Siege Activations . | . . . Martial Activations . | . . . Shielding Activations . | . . . Robots Disrupted . | . . . Combat Hostiles . | . . . Robots Corrupted . | . . . Combat Hostiles . | . . . Parts Fried . | . . . Impact Corruptions . | . . . Robots Melted . | . . . Combat Hostiles . | . . . Parts Melted 9 | . 5 4 Heat Transferred 2516 | . 1332 1184 Parts Sabotaged . | . . . Parts Stolen . | . . . Parts Stripped . | . . . Power Chain Reactions . | . . . Alert | -11 -10 -9 ------- Run | Yrd Mat Mat Maximum Alert Level 1 | . . 1 Low Security (%) 96 | 100 100 87 Level 1 3 | . . 12 Level 2 . | . . . Level 3 . | . . . Level 4 . | . . . Level 5 . | . . . High Security . | . . . Max Security . | . . . Peak Influence 283 | 5 193 283 Initial 78 | . . 78 Average 47 | 2 20 111 Influence Increases 691 | 5 241 445 Destroy 0b10 Robot/C 420 | . 180 240 Destroy 0b10 Robot/NC 20 | 5 10 5 Destroy Leader 112 | . 42 70 Successful Hack 7 | . 7 . Disable Machine 15 | . . 15 Destroy Structure 12 | . 2 10 Lose Combat Pursuer 105 | . . 105 Influence Decreases 418 | 5 56 357 Entered New Map 107 | . . 107 Time Decay 171 | 5 46 120 Lost Part 140 | . 10 130 Squads Dispatched 3 | . 2 1 Investigation 1 | . 1 . Extermination . | . . . Reinforcement 2 | . 1 1 Assault . | . . . Garrison . | . . . Intercept . | . . . Searches Triggered . | . . . Construction Impeded . | . . . Haulers Reinforced . | . . . Active Scanning Responses . | . . . Cargo Convoy Interrupts . | . . . Stealth | -11 -10 -9 --------- Run | Yrd Mat Mat Distress Signals 3 | . 1 2 Communications Jammed . | . . . Distress Signals . | . . . Times Spotted 38 | . 13 25 Peak Tracking Total 13 | . 9 13 Tactical Retreats 2 | . . 2 Traps | -11 -10 -9 ------- Run | Yrd Mat Mat Traps Triggered 1 | . 1 . Indirectly . | . . . Trap Hack Attempts . | . . . Triggered . | . . . Disarmed . | . . . Reprogrammed . | . . . Reused . | . . . Traps Extracted . | . . . Installed . | . . . Triggered . | . . . Machines | -11 -10 -9 ---------- Run | Yrd Mat Mat Machines Disabled 1 | . . 1 Max in Single Turn 1 | . . 1 Machines Repaired . | . . . Machines Dismantled . | . . . Machines Sabotaged . | . . . Overloaded Fab Kills . | . . . Hacking | -11 -10 -9 --------- Run | Yrd Mat Mat Machines Accessed 1 | . 1 . Terminals 1 | . 1 . Fabricators . | . . . Repair Stations . | . . . Recycling Units . | . . . Scanalyzers . | . . . Garrison Access . | . . . Total Hacks 2 | . 2 . Successful 2 | . 2 . Failed . | . . . Catastrophic . | . . . Database Lockouts . | . . . Manual 2 | . 2 . Terminals 2 | . 2 . Fabricators . | . . . Repair Stations . | . . . Recycling Units . | . . . Scanalyzers . | . . . Garrison Access . | . . . Terminal Hacks 1 | . 1 . Part Schematic 1 | . 1 . Fabricator Hacks . | . . . Repair Station Hacks . | . . . Recycling Unit Hacks . | . . . Scanalyzer . | . . . Garrison Access Hacks . | . . . Unauthorized Hacks 1 | . 1 . Terminals 1 | . 1 . Botnet 1 | . 1 . Fabricators . | . . . Repair Stations . | . . . Recycling Units . | . . . Scanalyzers . | . . . Garrison Access . | . . . Data Cores Recovered . | . . . Used . | . . . Hacking Detections 1 | . 1 . Full Trace Events . | . . . Feedback Events . | . . . Feedback Blocked . | . . . Robot Schematics Acquired . | . . . Robots Built . | . . . Authchips . | . . . Time . | . . . Total Robot Build Rating . | . . . Part Schematics Acquired 1 | . 1 . Parts Built . | . . . Authchips . | . . . Time . | . . . Total Part Build Rating . | . . . Part Studies Acquired . | . . . Parts Repaired . | . . . Time . | . . . Parts Recycled . | . . . Recycled Matter . | . . . Retrieved Matter . | . . . Retrieved Components . | . . . Parts Scanalyzed . | . . . Part Schematics Acquired . | . . . Parts Damaged . | . . . Bothacking | -11 -10 -9 ------------ Run | Yrd Mat Mat Used RIF Installer . | . . . Robots Hacked . | . . . Non-combat . | . . . Combat . | . . . Robot Hacks Applied . | . . . Relay Couplers Released . | . . . Fabnet Peak Effective % . | . . . Robots Rewired . | . . . Allies Hacked . | . . . Hacks Repelled . | . . . Allies | -11 -10 -9 -------- Run | Yrd Mat Mat Total Allies . | . . . Largest Group . | . . . Highest-Rated Group . | . . . Highest-Rated Ally . | . . . Total Orders . | . . . Ally Attacks . | . . . Total Damage . | . . . Kills . | . . . Allies Corrupted . | . . . Allies Melted . | . . . Intel | -11 -10 -9 ------- Run | Yrd Mat Mat Active Infowar (turns) 204 | . 11 193 Structural 204 | . 11 193 Robot Analysis Total . | . . . Derelict Logs Recovered . | . . . Drone Launches . | . . . Drone Recoveries . | . . . Exploration | -11 -10 -9 ------------- Run | Yrd Mat Mat Turns Passed 848 | 23 576 249 Spaces Moved 334 | 13 218 103 Core . | . . . Treads 2 | . . 2 Legs 27 | 13 14 . Wheels 305 | . 204 101 Hover . | . . . Flight . | . . . Fastest Speed 93 | 120 100 93 Average Speed 101 | 120 101 99 Slowest Speed 160 | 120 120 160 Overloaded Moves . | . . . Propulsion Burnouts . | . . . Robots Hopped . | . . . Potential Cave-ins . | . . . Cave-ins Triggered . | . . . Exploration Rate (%) 18 | 2 40 14 Regions Visited 2 Branch Regions . Pre-discovered Areas . | . . . Known Exits Taken . | . . . Unknown Exits Taken 2 | 1 1 . Scrap Searched . | . . . Spaces Dug . | . . . Terrain Destroyed 12 | . . 12 Melee . | . . . Projectile . | . . . AOE 12 | . . 12 Terrain Rammed . | . . . Walls Destroyed . | . . . Machines Disabled . | . . . Actions | -11 -10 -9 --------- Run | Yrd Mat Mat Total 727 | 16 532 179 Wait 294 | . 282 12 Move 332 | 12 217 103 Hop . | . . . Pick Up 6 | 2 . 4 Fast Attach 6 | . 4 2 Attach 9 | . 1 8 Detach 2 | . 2 . Swap 8 | . 3 5 Drop 9 | . 3 6 Fire 61 | 2 20 39 Melee . | . . . Ram . | . . . Kick . | . . . Crush . | . . . Escape Stasis . | . . . Rewire . | . . . Trap . | . . . Miscellaneous . | . . . Route ------- -11/Scrapyard -10/Materials -9/Materials History --------- Turn | Location | Event 1 | -11/Scrapyard | Discovered new exit (range 1) 24 | -11/Scrapyard | Entered Materials 305 | -10/Materials | Build established: Mutant 494 | -10/Materials | Discovered new exit (range 10) 595 | -10/Materials | Destroyed 9 combat bots 600 | -10/Materials | Entered another Materials area 600 | -9/Materials | Evolved 2 slots: Propulsion x1, Utility x1 794 | -9/Materials | System corruption reached 10% 799 | -9/Materials | Core integrity fell below 50% 833 | -9/Materials | Lost 5 parts (1p2n2u) 845 | -9/Materials | Core integrity fell below 20% 849 | -9/Materials | Destroyed by L-31 Rogue with Katana Last Messages --------------- 00833_ Com. Wheel destroyed. 00834_ Acquired Lgt. Ion Engine. 00837_ Lgt. Armor Plating destroyed. 00839_ Beam Rifle destroyed. 00839_ Lgt. Ion Engine destroyed. 00839_ Lgt. Armor Plating destroyed. 00840_ System corrupted: Heat flow error (+211). 00841_ Destroyed Datajack. 00841_ Destroyed Ion Engine. 00844_ G-34 Mercenary destroyed. 00845_ The unstable cave ceiling collapses. 00845_ Aluminum Leg crushed. 00845_ U-05 Engineer lays Concrete. 00846_ The unstable cave ceiling collapses. 00846_ Sml. Laser crushed. 00847_ The unstable cave ceiling collapses. 00847_ U-05 Engineer lays Concrete. 00847_ Rocket Launcher severed. 00847_ Hvy. Assault Rifle destroyed. 00848_ U-05 Engineer lays Concrete. Map ----- +----------------------------------------------------+ | | | | | | | | | | | ?????????????????????????????????????????????????? | | ?????????????????????????????????????????????????# | | ?????????????????????????????????????????????????# | | ?????????????????????????????????????????????????# | | ????????????????????????????????????##########???# | | ????????????????????????????????????##########???# | | ????????????????????????????????????## ##???# | | ????????????????????????????????????## ##???# | | ????????????????????????????????????## % ###### | | ????????????????????????????????????## ]###### | | ????????????????????????????????????## + | | ????????????????????????????????????## ###### | | ???????????????????#########????????############## | | ????????????????############???????? ############ | | ????????????????? = ##????""""????????###### | | ??????????????? #"" ##????""""????????## # | | ??????????????? #"T ##????""""????????## # | | ??????????????? #"" #### ????????## # | | ??????????????? # """ #### "S ????????## + | | ????????? # = g# ## """ ????????## # | | ????????? + [%=! [@ #?? "" ???????### # | | ???????????###### **g[l%# ## ######## # | | ???????????############ #%# #####/########## | | ?????????? =! | | ?????????? ^u ! " | | ?????????? %= | | ??????????##########+## ######+########## | | ??????????####### # ## ! %%=[ #######+## | | ????????????????????? # ##[% ! # | | ?????????????????????[ # ## """ =%[ # = " | | ???????????????????? #r k## """ = # = " | | ???????????????????? # a## """ "Y" # =/ " | | ??????????????????? # ## """ # | | ???????????????????# ?## # ########## | | ??????????????????????## ############### | | ??????????????????????## ###???????? | | ??????????????????????## ?????????????????????? | | ??????????????????????## ?????????????????????? | | ?????????????????????? ?????????????????????? | | ??????????????????????? ?????????????????????? | | ???????????????????????? ??????????????????????? | | ?????????????????????????????????????????????????? | | ?????????????????????????????????????????????????? | | ?????????????????????????????????????????????????? | | ?????????????????????????????????????????????????? | +----------------------------------------------------+ Best States ------------- Heat Dissipation 42 Energy Generation 10 Energy Capacity 250 Matter Stores 300 Matter Capacity 300 Sight Range 16 Terrain Scan Density 10 Armor Coverage 300 Propulsion Shielding 33 Evasion (%) 55 Recoil Reduction 1 Item Schematics ----------------- Structural Scanner | -10/Materials | Hacked Robot Schematics ------------------ None Fabricated ------------ Nothing Repaired ---------- Nothing Studied --------- None Alien Tech Used ----------------- None Achievements -------------- None Challenges ------------ None Game ------ Seed TimingPortableArchive Manual? 0 Play Time 00:13:34 Cumulative 33.8 hours Start 2026.08.25 @ 14:42:37 End 2026.08.25 @ 14:55:30 Sessions 1 Manual Loads 0 Difficulty Rogue Special Mode None Game No. 24 Rogue 2 Adventurer 22 Explorer 0 Win Type - Total 0 Types 0/0/0/0/0/0/0/0/0/0 Lore% 17 Gallery% 24 Achievement% 19 Wizard Run 0 Options --------- Layout 1 ASCII 0 Keyboard 1 Movement Numpad Keybinds 0 Fullscreen 1 Font 48/Smallcaps Map View 50x35 Zoom Use 0% Tactical HUD 1 Map Filters NONE Filters NONE Steam 1 RUN: 93edfd6a-8e0b-40ca-a339-e0b3ffd3937f